bitfinex/quotes_SOLUSD_20250310
["timestamp","ask_amount","ask_price","bid_price","bid_amount"]
[1741587166299,10.70851463,127.95,127.94,0.063]
[1741587167719,30.70851463,127.96,127.94,0.063]
[1741587167918,10.70851463,127.97,127.94,0.063]
[1741587168138,10.70851463,127.97,127.94,7.8791]
[1741587168426,20.0,127.96,127.95,0.14216157]
[1741587168600,10.70851463,127.98,127.95,0.14216157]
[1741587168807,10.70851463,127.99,127.95,0.14216157]
[1741587169729,10.73851463,128.0,127.95,29.50032506]
[1741587170030,0.03,128.0,127.97,0.14216157]
[1741587170229,20.0,127.99,127.98,7.8137]
[1741587170403,36.74559847,128.0,127.98,7.8137]
[1741587171028,20.03,128.0,127.98,7.8137]
[1741587171218,20.03,128.0,127.97,7.95646157]
[1741587171403,36.74559847,128.0,127.97,7.95646157]
[1741587172602,36.74559847,128.0,127.97,0.14216157]
[1741587173211,16.71559847,127.99,127.97,0.14216157]
[1741587173819,16.71559847,127.99,127.97,7.95636157]
[1741587175019,36.74559847,128.0,127.97,7.95636157]
[1741587175214,0.03,128.0,127.97,24.67196004]
[1741587176108,0.03,128.0,127.97,7.95636157]
[1741587178919,0.03,128.0,127.97,319.95636157]
[1741587179306,16.74559847,128.0,127.97,319.95636157]
[1741587179505,16.71559847,127.99,127.95,28.22891043]
[1741587179810,16.71559847,127.98,127.95,28.22891043]
[1741587180551,16.71559847,127.99,127.95,28.22891043]
[1741587180725,24.52869847,127.99,127.95,26.60701043]
[1741587180923,24.52869847,127.99,127.95,18.79181043]
[1741587181142,16.71559847,127.98,127.95,18.79181043]
[1741587181436,16.71559847,127.98,127.95,0.14216157]
[1741587182232,16.74559847,128.0,127.95,7.95766157]
[1741587182434,0.03,128.0,127.95,24.67326004]
[1741587182746,20.0,127.99,127.95,24.67326004]
[1741587182919,16.74559847,128.0,127.95,24.67326004]
[1741587183420,16.71559847,127.99,127.95,7.95766157]
[1741587184226,16.71559847,127.99,127.95,0.14216157]
[1741587184434,16.71559847,127.98,127.95,0.14216157]
[1741587184743,16.71559847,127.98,127.95,7.95766157]
[1741587185250,16.71559847,127.99,127.95,7.95766157]
[1741587189247,16.71559847,127.98,127.94,0.063]
[1741587189455,16.71559847,127.96,127.94,0.063]
[1741587191049,16.71559847,127.97,127.94,7.8789]
[1741587191246,99.11559847,127.98,127.94,7.8789]
[1741587191449,99.11559847,127.98,127.96,7.8149]
[1741587192252,93.10104928,127.98,127.96,7.8149]
[1741587193160,82.4,127.98,127.96,7.8149]
[1741587193655,10.73104928,128.0,127.97,0.14216157]
[1741587193829,20.0,127.98,127.97,0.14216157]
[1741587194725,20.0,127.98,127.96,7.8149]
[1741587194952,30.70104928,127.99,127.96,7.8149]
[1741587195259,20.0,127.99,127.96,7.8149]
[1741587196156,10.73104928,128.0,127.96,7.8149]
[1741587196941,10.73104928,128.0,127.97,0.14216157]
[1741587197141,0.03,128.0,127.97,25.79181043]
[1741587197926,0.03,128.0,127.98,7.8137]
[1741587198860,0.03,128.0,127.99,0.14216157]
[1741587199148,0.03,128.0,127.99,18.79181043]
[1741587200161,0.03,128.0,127.99,26.60491043]
[1741587200345,0.03,128.0,127.99,37.30595971]
[1741587201427,1.5376,128.06,127.99,62.87815971]
[1741587201428,10.70104928,128.06,127.99,62.87815971]
[1741587201767,10.70104928,128.06,128.02,0.14216157]
[1741587202069,10.70104928,128.06,128.02,7.14216157]
[1741587202632,93.13104928,128.07,128.02,17.84321085]
[1741587203938,10.70104928,128.06,128.03,7.8106]
[1741587204345,16.70123538,128.06,128.03,7.8106]
[1741587206269,16.70123538,128.06,128.04,0.14216157]
[1741587206472,82.43,128.07,128.04,0.14216157]
[1741587206682,0.03,128.07,128.04,0.14216157]
[1741587207467,0.03,128.06,128.04,0.14216157]
[1741587207851,0.03,128.06,128.04,35.49304581]
[1741587208082,0.03,128.06,128.05,43.30244581]
[1741587210854,0.03,128.06,128.05,355.30244581]
[1741587216281,0.03,128.06,128.05,572.20244581]
[1741587218877,0.03,128.06,128.05,260.20244581]
[1741587220051,0.03,128.06,128.05,243.50121043]
[1741587221371,0.03,128.06,128.05,18.79181043]
[1741587221778,0.03,128.06,128.04,0.14216157]
[1741587221956,0.03,128.06,128.03,33.46004886]
[1741587223561,0.03,128.06,128.04,7.95186157]
[1741587224286,0.03,128.06,128.04,24.65309695]
[1741587225288,0.03,128.06,128.04,7.95186157]
[1741587225595,0.03,128.06,128.04,24.65309695]
[1741587225791,0.03,128.06,128.05,18.79181043]
[1741587226081,0.03,128.06,128.05,35.49304581]
[1741587226282,0.03,128.06,128.05,18.79181043]
[1741587226773,10.71244483,128.06,128.03,18.79181043]
[1741587227888,10.71244483,128.06,128.03,26.60231043]
[1741587228097,10.71244483,128.06,128.03,18.79181043]
[1741587228292,10.68244483,128.05,128.02,18.79181043]
[1741587228592,10.68244483,128.03,128.0,0.063]
[1741587228793,10.68244483,128.03,128.0,7.063]
[1741587229295,10.68244483,128.03,128.0,0.20516157]
[1741587230268,16.7072544,128.03,128.0,8.01756157]
[1741587230789,16.7072544,128.04,128.0,8.01756157]
[1741587232481,16.7072544,128.04,128.0,0.20516157]
[1741587232482,24.5173544,128.04,128.0,0.20516157]
[1741587232670,16.7072544,128.03,128.0,0.20516157]
[1741587234281,16.7072544,128.02,128.0,0.063]
[1741587234685,16.7072544,128.01,128.0,0.063]
[1741587236073,16.7072544,128.02,128.0,0.063]
[1741587236393,16.7072544,128.01,128.0,0.063]
[1741587238869,36.7072544,128.02,128.0,0.063]
[1741587239802,16.7072544,128.01,128.0,0.063]
[1741587240401,99.24941597,128.01,128.0,0.063]
[1741587242806,107.06121597,128.01,128.0,0.063]
[1741587244316,107.09121597,128.01,128.0,0.063]
[1741587244610,99.27941597,128.01,128.0,0.063]
[1741587245286,107.09121597,128.01,128.0,0.063]
[1741587245790,99.27941597,128.01,128.0,0.063]
[1741587246508,99.1372544,128.01,128.0,0.063]
[1741587246815,20.03,128.01,128.0,0.063]
[1741587248092,36.7372544,128.01,128.0,0.063]
[1741587250194,20.03,128.01,128.0,0.063]
[1741587251316,0.03,128.01,128.0,0.063]
[1741587253603,0.03,128.01,128.0,18.85481043]
[1741587253930,0.03,128.01,128.0,29.54987418]
[1741587255227,0.03,128.01,128.0,37.36237418]
[1741587255801,0.0001,128.01,128.0,37.36237418]
[1741587256113,0.0001,128.01,128.0,254.26237418]
[1741587256512,0.0001,128.01,128.0,216.963]
[1741587257251,10.69516375,128.01,128.0,0.063]
[1741587260222,0.0001,128.01,128.0,0.063]
[1741587260525,36.71535009,128.01,128.0,0.063]
[1741587261935,36.85751166,128.01,128.0,0.063]
[1741587262103,44.66931166,128.01,128.0,0.063]
[1741587262303,36.85751166,128.01,128.0,0.063]
[1741587262505,36.71535009,128.01,128.0,0.063]
[1741587267207,44.52715009,128.01,128.0,0.063]
[1741587267404,52.54151166,128.01,128.0,0.063]
[1741587269804,38.40321166,128.01,128.0,0.063]
[1741587270021,36.71535009,128.01,128.0,0.063]
[1741587272911,44.52715009,128.01,128.0,0.063]
[1741587273102,44.66931166,128.01,128.0,0.063]
[1741587273505,44.66931166,128.01,127.96,0.063]
[1741587273506,61.38456175,128.01,127.96,0.063]
[1741587273731,36.71525009,127.97,127.96,0.063]
[1741587275609,16.71525009,127.99,127.96,0.063]
[1741587276328,16.71525009,127.98,127.96,0.063]
[1741587277333,16.71525009,127.97,127.96,0.063]
[1741587282641,16.71525009,127.98,127.96,0.063]
[1741587283742,16.71525009,127.97,127.96,0.063]
[1741587284336,10.70285703,127.97,127.96,0.063]
[1741587287633,0.14216157,127.99,127.96,0.063]
[1741587287829,10.70285703,127.97,127.96,0.063]
[1741587289345,10.70285703,127.98,127.96,0.063]
[1741587291644,10.70285703,127.97,127.96,0.063]
[1741587299457,10.8450186,127.97,127.96,0.063]
[1741587300454,93.10285703,127.98,127.96,0.063]
[1741587300751,10.70285703,127.97,127.96,0.063]
[1741587302557,18.6593186,127.97,127.96,0.063]
[1741587302757,102.6513186,127.97,127.96,0.063]
[1741587302957,0.14216157,127.94,127.93,0.063]
[1741587303267,38.6605186,127.95,127.91,0.505]
[1741587303268,0.14216157,127.92,127.91,0.505]
[1741587303651,136.05644672,127.92,127.91,0.505]
[1741587303854,137.60904672,127.92,127.88,0.063]
[1741587304040,30.8450186,127.89,127.88,0.063]
[1741587305147,30.70285703,127.89,127.88,0.063]
[1741587305473,30.70285703,127.9,127.88,0.063]
[1741587305959,10.70285703,127.89,127.88,0.063]
[1741587308362,30.70285703,127.9,127.88,0.063]
[1741587309257,10.70285703,127.89,127.88,0.063]
[1741587310059,10.70285703,127.9,127.88,0.063]
[1741587310455,10.70285703,127.91,127.88,0.063]
[1741587311669,10.70285703,127.92,127.88,18.85481043]
[1741587311888,82.4,127.95,127.89,10.70285703]
[1741587312051,10.70285703,127.96,127.91,10.70285703]
[1741587312244,10.70285703,127.96,127.92,7.0]
[1741587313053,93.10285703,127.98,127.93,56.85326746]
[1741587313557,10.70285703,127.97,127.93,46.15041043]
[1741587313953,10.70285703,127.97,127.93,56.85326746]
[1741587314272,36.72255235,127.97,127.93,62.87296278]
[1741587314851,36.72255235,127.97,127.93,43.33106278]
[1741587315053,36.72255235,127.97,127.93,26.67151043]
[1741587315459,20.0,127.97,127.93,43.39406278]
[1741587315858,16.75255235,127.98,127.93,43.39406278]
[1741587316066,0.03,127.98,127.95,35.51436278]
[1741587316575,0.03,127.98,127.95,18.79181043]
[1741587317474,0.03,127.98,127.95,26.60701043]
[1741587317653,0.03,127.98,127.95,43.32956278]
[1741587318466,0.03,127.98,127.97,18.79181043]
[1741587318679,0.03,127.98,127.97,42.51436278]
[1741587318974,0.03,127.98,127.97,25.79181043]
[1741587320279,0.03,127.98,127.97,33.60611043]
[1741587321477,0.03,127.98,127.97,7.0]
[1741587324271,16.75255235,127.98,127.95,96.45746157]
[1741587324454,16.75255235,127.98,127.95,88.64216157]
[1741587325062,16.75255235,127.98,127.95,96.45766157]
[1741587325495,0.03,127.98,127.95,113.18021392]
[1741587325860,0.03,127.98,127.96,35.37220121]
[1741587326179,0.03,127.98,127.97,16.86471392]
[1741587326358,0.03,128.0,127.97,24.50311392]
[1741587326558,0.03,128.0,127.99,35.51436278]
[1741587327071,0.03,128.0,127.99,18.79181043]
[1741587327697,0.03,128.0,127.99,35.51436278]
[1741587327893,0.03,128.0,127.99,43.32746278]
[1741587332074,0.03,128.0,127.99,26.60491043]
[1741587334085,0.03,128.0,127.99,43.32746278]
[1741587334259,0.03,128.0,127.99,26.60491043]
[1741587335291,0.03,128.0,127.99,43.32746278]
[1741587338293,0.03,128.0,127.99,37.2973293]
[1741587339381,0.03,128.0,127.99,26.60491043]
[1741587340691,0.03,128.0,127.99,37.2973293]
[1741587341078,0.0001,128.01,127.99,37.2973293]
[1741587341280,0.0001,128.01,128.0,10.69241887]
[1741587341979,0.0001,128.01,128.0,246.3842293]
[1741587342596,0.0001,128.01,128.0,254.1967293]
[1741587342970,0.0001,128.01,128.0,566.1967293]
[1741587349396,0.0001,128.01,128.0,566.33889087]
[1741587350308,0.0001,128.01,128.0,566.1967293]
[1741587350597,0.0001,128.01,128.0,250.48431043]
[1741587350898,0.0001,128.01,128.0,243.56731043]
[1741587352188,0.0001,128.01,128.0,26.66731043]
[1741587352390,0.0001,128.01,128.0,37.3597293]
[1741587354886,0.0001,128.01,128.0,38.67320389]
[1741587355088,0.0001,128.03,128.01,18.64964886]
[1741587355279,0.0001,128.03,128.02,29.4842293]
[1741587355709,0.0001,128.03,128.02,37.2954293]
[1741587356212,0.0001,128.03,128.02,255.50885917]
[1741587356392,0.0001,128.03,128.02,254.33759087]
[1741587356703,0.0001,128.03,128.02,254.1954293]
[1741587357778,0.0001,128.03,128.02,566.1954293]
[1741587360704,0.0001,128.03,128.02,254.1954293]
[1741587360917,0.0001,128.03,128.02,25.77181043]
[1741587362011,0.0001,128.03,128.02,33.58301043]
[1741587362398,0.0001,128.03,128.02,25.77181043]
[1741587362798,0.0301,128.03,128.02,25.77181043]
[1741587363087,0.0301,128.03,128.02,6.98]
[1741587363402,10.72251887,128.03,128.0,224.7752]
[1741587363607,0.0301,128.03,128.0,224.7752]
[1741587364012,0.0301,128.03,128.0,7.8752]
[1741587365198,0.0301,128.03,128.0,18.56761887]
[1741587366616,0.0301,128.03,128.02,7.8112]
[1741587366786,0.0301,128.03,128.01,18.79181043]
[1741587366988,0.0301,128.03,128.01,7.8116]
[1741587373025,0.0301,128.03,128.0,18.85481043]
[1741587373231,0.0301,128.03,128.0,26.66731043]
[1741587374014,0.0301,128.03,128.0,338.66731043]
[1741587374221,0.0301,128.03,128.0,345.64731043]
[1741587374403,0.0301,128.03,128.0,33.64731043]
[1741587375220,0.0301,128.03,128.0,25.83481043]
[1741587376016,0.0301,128.03,128.0,0.063]
[1741587376321,10.69241887,128.01,128.0,0.063]
[1741587376908,12.65097732,128.01,128.0,0.063]
[1741587377510,20.46277732,128.01,128.0,0.063]
[1741587378224,28.54613889,128.01,128.0,0.063]
[1741587380321,28.40397732,128.01,128.0,0.063]
[1741587380504,28.54613889,128.01,128.0,0.063]
[1741587387923,20.0,127.98,127.95,0.14216157]
[1741587388128,10.69241887,127.97,127.95,0.14216157]
[1741587390303,10.69241887,127.96,127.93,81.563]
[1741587390509,10.69241887,127.95,127.93,81.563]
[1741587390736,10.69241887,127.95,127.93,0.063]
[1741587391232,70.58337548,127.98,127.93,0.063]
[1741587391233,10.69241887,127.94,127.93,0.063]
[1741587392214,10.69241887,127.95,127.93,0.063]
[1741587394526,7.8151,127.96,127.93,0.063]
[1741587394527,10.69241887,127.94,127.93,0.063]
[1741587394732,10.83458044,127.94,127.93,0.063]
[1741587396131,10.69241887,127.94,127.93,0.063]
[1741587396321,10.83458044,127.94,127.93,0.063]
[1741587396834,18.65068044,127.94,127.93,0.063]
[1741587397130,10.83458044,127.94,127.93,0.063]
[1741587397440,10.69241887,127.94,127.93,0.063]
[1741587397611,82.4,127.95,127.93,0.063]
[1741587398040,93.09241887,127.95,127.93,0.063]
[1741587398934,10.69241887,127.94,127.93,0.063]
[1741587399971,10.83458044,127.94,127.93,0.063]
[1741587400118,20.14216157,127.91,127.9,0.063]
[1741587400319,30.69241887,127.91,127.9,0.063]
[1741587400525,121.05248044,127.91,127.9,0.063]
[1741587401019,113.09241887,127.91,127.9,0.063]
[1741587402042,10.69241887,127.92,127.9,0.063]
[1741587404840,10.69241887,127.93,127.9,0.063]
[1741587405059,82.4,127.94,127.91,10.69241887]
[1741587405233,10.69241887,127.96,127.92,18.79181043]
[1741587405564,30.69241887,127.97,127.92,29.4842293]
[1741587405935,10.69241887,127.97,127.92,29.4842293]
[1741587406156,10.69241887,127.96,127.92,18.79181043]
[1741587406953,10.69241887,127.96,127.93,7.8167]
[1741587407622,10.69241887,127.94,127.91,7.8179]
[1741587407821,10.69241887,127.96,127.92,18.79181043]
[1741587408014,93.09241887,127.97,127.92,341.4842293]
[1741587408218,30.69241887,127.96,127.92,330.79181043]
[1741587408620,10.69241887,127.97,127.92,341.4842293]
[1741587408841,0.14216157,127.98,127.93,7.8167]
[1741587409040,10.69241887,127.97,127.93,7.8167]
[1741587409340,10.69241887,127.96,127.93,7.8167]
[1741587409834,10.69241887,127.97,127.93,7.8167]
[1741587410039,10.69241887,127.98,127.93,38.05101887]
[1741587410236,10.69241887,127.98,127.94,6.98]
[1741587410839,0.03,127.96,127.94,6.98]
[1741587411435,0.03,127.96,127.95,7.8155]
[1741587414727,0.03,127.96,127.95,26.60731043]
[1741587414933,0.03,127.96,127.95,37.2997293]
[1741587415238,0.03,127.96,127.95,26.60731043]
[1741587416024,0.03,127.96,127.95,338.60731043]
[1741587416754,0.03,127.96,127.95,349.2997293]
[1741587429164,0.03,127.96,127.95,37.2997293]
[1741587432166,0.03,127.96,127.95,349.2997293]
[1741587434449,0.03,127.96,127.95,37.2997293]
[1741587435667,0.03,128.0,127.99,18.79181043]
[1741587435847,0.0301,128.03,128.02,29.4842293]
[1741587436047,0.0001,128.03,128.02,29.4842293]
[1741587437360,0.0001,128.03,128.02,341.4842293]
[1741587437854,0.0001,128.03,128.02,349.2954293]
[1741587438272,0.0001,128.03,128.02,26.46084886]
[1741587438465,0.0001,128.03,128.02,7.8112]
[1741587440385,0.0001,128.03,128.02,18.64578044]
[1741587441362,0.0001,128.03,128.02,349.2954293]
[1741587443150,0.0001,128.03,128.02,272.66586635]
[1741587443578,0.0001,128.03,128.02,229.89619087]
[1741587444274,0.0001,128.03,128.02,229.7540293]
[1741587444576,0.0001,128.03,128.02,229.89619087]
[1741587444950,0.0001,128.03,128.02,446.79619087]
[1741587445776,0.0001,128.03,128.02,489.56586635]
[1741587446160,0.0001,128.03,128.02,801.56586635]
[1741587447170,0.0001,128.03,128.02,801.62886635]
[1741587449976,0.0001,128.03,128.02,808.58886635]
[1741587451567,0.0001,128.03,128.02,765.81919087]
[1741587452191,0.0001,128.03,128.02,767.81919087]
[1741587452990,0.0001,128.03,128.02,765.6770293]
[1741587453708,0.0001,128.03,128.02,765.81919087]
[1741587458297,0.0001,128.03,128.02,767.81919087]
[1741587461889,0.0001,128.03,128.02,765.81919087]
[1741587462196,0.0001,128.03,128.02,767.81919087]
[1741587462491,0.0001,128.08,128.07,18.79181043]
[1741587462697,0.0001,128.08,128.07,253.3442293]
[1741587463398,0.0001,128.08,128.07,246.3842293]
[1741587463699,0.0001,128.08,128.07,253.3442293]
[1741587464495,0.0001,128.08,128.07,261.1524293]
[1741587464996,0.03,128.11,128.08,0.14216157]
[1741587465179,0.03,128.11,128.09,29.4842293]
[1741587465578,0.03,128.11,128.09,341.4842293]
[1741587467099,0.03,128.11,128.09,349.2912293]
[1741587467985,0.03,128.11,128.09,566.1912293]
[1741587470701,0.03,128.11,128.09,566.2542293]
[1741587476708,0.03,128.11,128.1,18.49881887]
[1741587479598,0.03,128.11,128.1,330.49881887]
[1741587486211,0.03,128.16,128.13,0.14216157]
[1741587486416,0.03,128.16,128.15,29.4842293]
[1741587486618,0.03,128.16,128.15,246.3842293]
[1741587487418,0.03,128.16,128.15,235.69181043]
[1741587487635,0.03,128.16,128.15,217.04216157]
[1741587487791,0.03,128.16,128.14,17.65241887]
[1741587487987,0.03,128.16,128.15,7.94546157]
[1741587488226,0.03,128.16,128.15,37.2875293]
[1741587489315,0.03,128.16,128.15,349.2875293]
[1741587489900,0.03,128.16,128.15,7.94546157]
[1741587490299,0.03,128.16,128.15,37.2875293]
[1741587491018,0.03,128.16,128.15,44.2475293]
[1741587492828,0.03,128.16,128.15,356.2475293]
[1741587493014,0.0001,128.16,128.15,356.2475293]
[1741587493217,0.0001,128.18,128.17,0.14216157]
[1741587493522,0.0001,128.18,128.17,29.4842293]
[1741587494224,0.0001,128.18,128.17,433.57625097]
[1741587494517,0.0001,128.18,128.17,432.40639087]
[1741587494906,0.0001,128.18,128.17,440.20849087]
[1741587497010,0.0001,128.18,128.17,754.20849087]
[1741587497213,0.03,128.23,128.19,0.14216157]
[1741587497418,0.03,128.23,128.22,10.69241887]
[1741587497814,0.03,128.23,128.21,135.54216157]
[1741587498002,0.03,128.23,128.21,135.4]
[1741587498202,0.03,128.23,128.21,146.09241887]
[1741587498403,0.03,128.23,128.21,135.4]
[1741587498904,0.03,128.23,128.2,33.55191043]
[1741587500609,0.03,128.23,128.2,345.55191043]
[1741587501132,0.03,128.23,128.2,14.7601]
[1741587501311,0.03,128.23,128.2,33.40974886]
[1741587501514,0.03,128.23,128.21,18.79181043]
[1741587502120,0.03,128.23,128.21,10.83458044]
[1741587502834,0.03,128.23,128.22,10.69241887]
[1741587503037,0.03,128.23,128.22,29.4842293]
[1741587503235,0.0001,128.23,128.22,37.2832293]
[1741587504107,0.0001,128.23,128.22,349.2832293]
[1741587505740,0.0001,128.24,128.23,18.79181043]
[1741587505941,0.0001,128.24,128.23,29.4842293]
[1741587507654,0.0001,128.24,128.23,37.2826293]
[1741587508654,0.0001,128.24,128.23,349.2826293]
[1741587509553,0.0001,128.24,128.23,349.42479087]
[1741587509730,0.0001,128.24,128.23,349.2826293]
[1741587513039,0.0001,128.24,128.23,356.2226293]
[1741587513957,0.0001,128.24,128.23,44.2226293]
[1741587516951,0.0001,128.24,128.23,356.2226293]
[1741587517550,0.0001,128.24,128.23,44.2226293]
[1741587518163,12.26321887,128.3,128.23,63.7188293]
[1741587518349,1.5708,128.3,128.26,10.83458044]
[1741587519163,12.26321887,128.3,128.27,7.796]
[1741587519353,2.26321887,128.3,128.27,7.796]
[1741587519764,6.5378,128.31,128.27,7.796]
[1741587520072,10.69241887,128.3,128.27,7.796]
[1741587520958,17.23021887,128.31,128.27,7.796]
[1741587521778,10.69241887,128.3,128.27,7.796]
[1741587524463,17.23021887,128.31,128.27,7.796]
[1741587526181,6.5378,128.31,128.28,6.94]
[1741587527385,6.5378,128.31,128.29,7.7948]
[1741587528187,0.03,128.31,128.29,7.7948]
[1741587531559,0.03,128.31,128.29,319.7948]
[1741587531763,0.03,128.31,128.29,330.48721887]
[1741587532761,0.03,128.31,128.3,18.79181043]
[1741587532963,0.03,128.31,128.3,29.4842293]
[1741587533362,0.03,128.31,128.3,37.2784293]
[1741587535473,0.03,128.31,128.3,26.58601043]
[1741587535673,0.03,128.31,128.28,10.75541887]
[1741587535881,0.03,128.31,128.29,25.58964886]
[1741587536671,0.03,128.31,128.29,6.94]
[1741587536867,0.03,128.31,128.28,312.063]
[1741587537072,10.69241887,128.3,128.28,0.063]
[1741587537571,10.69241887,128.29,128.28,0.063]
[1741587538098,10.69241887,128.3,128.28,0.063]
[1741587538406,10.72241887,128.31,128.28,0.063]
[1741587539594,0.03,128.31,128.28,26.50794886]
[1741587539896,10.69241887,128.3,128.28,0.063]
[1741587540786,10.72241887,128.31,128.28,7.8583]
[1741587541297,10.69241887,128.3,128.28,0.063]
[1741587541495,10.72241887,128.31,128.28,0.063]
[1741587541997,0.03,128.31,128.28,0.063]
[1741587543395,0.03,128.31,128.28,10.75541887]
[1741587544401,0.03,128.31,128.28,0.063]
[1741587545300,0.03,128.31,128.29,10.69241887]
[1741587545482,0.03,128.31,128.3,26.58601043]
[1741587545683,0.03,128.31,128.3,37.2784293]
[1741587546397,0.0001,128.31,128.3,349.2784293]
[1741587546784,0.0001,128.31,128.3,338.58601043]
[1741587547797,0.0001,128.31,128.3,26.58601043]
[1741587548390,0.0001,128.31,128.3,37.2784293]
[1741587548699,0.0001,128.31,128.3,26.58601043]
[1741587550203,0.0001,128.31,128.3,37.2784293]
[1741587550697,0.0001,128.31,128.3,338.58601043]
[1741587551103,0.0001,128.31,128.3,349.2784293]
[1741587556808,0.0001,128.31,128.3,356.2184293]
[1741587558780,0.0001,128.31,128.3,345.52601043]
[1741587558984,0.0001,128.31,128.3,33.52601043]
[1741587559186,0.0001,128.31,128.3,44.2184293]
[1741587560706,0.0001,128.31,128.3,33.52601043]
[1741587561698,0.0001,128.31,128.3,44.2184293]
[1741587561902,0.0001,128.31,128.3,345.52601043]
[1741587562115,0.0001,128.31,128.3,26.44384886]
[1741587562325,0.0001,128.31,128.3,29.4842293]
[1741587562995,0.0001,128.31,128.3,254.1784293]
[1741587565115,0.0001,128.31,128.3,566.1784293]
[1741587566415,0.0001,128.31,128.3,566.2414293]
[1741587567329,0.03,128.36,128.3,624.6980293]
[1741587567616,0.03,128.36,128.35,18.64964886]
[1741587567911,0.03,128.36,128.35,25.58964886]
[1741587568425,0.03,128.36,128.35,6.94]
[1741587569314,20.03,128.36,128.35,14.7311]
[1741587570397,0.03,128.36,128.35,14.7311]
[1741587570596,20.03,128.36,128.35,14.7311]
[1741587570810,0.03,128.36,128.35,14.7311]
[1741587571616,0.03,128.36,128.35,33.38074886]
[1741587576632,0.03,128.36,128.35,6.94]
[1741587578828,0.03,128.36,128.35,14.7311]
[1741587580134,0.03,128.36,128.35,33.38074886]
[1741587581028,0.03,128.36,128.35,25.58964886]
[1741587581710,0.03,128.36,128.35,6.94]
[1741587581907,0.14216157,128.35,128.32,18.64964886]
[1741587582136,10.83458044,128.35,128.31,193.4134]
[1741587582707,10.69241887,128.34,128.31,185.62]
[1741587582928,0.14216157,128.35,128.31,185.62]
[1741587583226,10.69241887,128.34,128.31,185.62]
[1741587583409,10.69241887,128.32,128.31,185.62]
[1741587585737,0.14216157,128.31,128.3,0.063]
[1741587585907,10.83458044,128.31,128.3,0.063]
[1741587587331,18.62818044,128.31,128.3,0.063]
[1741587587632,26.62138044,128.31,128.3,0.063]
[1741587588330,26.62138044,128.31,128.28,0.063]
[1741587588331,20.14216157,128.29,128.28,0.063]
[1741587588504,10.83458044,128.29,128.28,0.063]
[1741587589329,18.62938044,128.29,128.28,0.063]
[1741587589634,10.83458044,128.29,128.28,0.063]
[1741587592212,18.62938044,128.29,128.28,0.063]
[1741587592410,61.39905592,128.29,128.28,0.063]
[1741587594526,18.62938044,128.29,128.28,0.063]
[1741587595742,61.39905592,128.29,128.28,0.063]
[1741587595974,61.54121749,128.29,128.28,0.0001]
[1741587596112,0.14216157,128.25,128.22,0.063]
[1741587596317,30.69241887,128.25,128.22,26.51164886]
[1741587596538,20.0,128.25,128.22,26.51164886]
[1741587597044,30.69241887,128.25,128.22,26.51164886]
[1741587597244,10.69241887,128.24,128.22,18.71264886]
[1741587598039,10.69241887,128.23,128.22,0.063]
[1741587599937,20.0,128.24,128.22,0.063]
[1741587600131,10.69241887,128.26,128.22,18.71264886]
[1741587600338,93.09241887,128.27,128.22,29.40506773]
[1741587600522,93.09241887,128.27,128.23,6.94]
[1741587600718,93.09241887,128.27,128.24,18.64964886]
[1741587601040,10.69241887,128.27,128.24,18.64964886]
[1741587601828,10.69241887,128.28,128.24,18.64964886]
[1741587602131,10.69241887,128.28,128.25,7.7972]
[1741587602671,10.69241887,128.27,128.24,26.44724886]
[1741587602974,10.69241887,128.26,128.24,18.64964886]
[1741587603176,10.69241887,128.26,128.23,14.7382]
[1741587604163,20.0,128.27,128.24,18.64964886]
[1741587604486,10.69241887,128.28,128.24,29.34206773]
[1741587605060,10.69241887,128.28,128.24,18.64964886]
[1741587605739,10.69241887,128.26,128.24,18.64964886]
[1741587606276,10.69241887,128.26,128.24,330.64964886]
[1741587606573,10.69241887,128.27,128.24,338.44734886]
[1741587607234,10.69241887,128.26,128.23,14.7381]